[Event "Early-Titled-Tuesday-Blitz-February-06-2024"]
[Site "Chess.com"]
[Date "2024.02.06"]
[Round "9"]
[White "N_I_Chess"]
[Black "Actuary44"]
[Result "0-1"]
[WhiteElo "2338"]
[BlackElo "2479"]
[TimeControl "180+1"]
[EndTime "9:44:17 PST"]
[Termination "Actuary44 won by resignation"]

1. d4 {[%clk 0:02:48.2]} 1... Nf6 {[%clk 0:03:00.1]} 2. c4 {[%clk 0:02:47.8]}
2... g6 {[%clk 0:03:00.4]} 3. Nc3 {[%clk 0:02:48.3]} 3... Bg7 {[%clk 0:03:00.9]}
4. e4 {[%clk 0:02:48.8]} 4... d6 {[%clk 0:03:01.6]} 5. f4 {[%clk 0:02:49.3]}
5... O-O {[%clk 0:03:02.5]} 6. Nf3 {[%clk 0:02:49.8]} 6... c5 {[%clk 0:03:01.9]}
7. d5 {[%clk 0:02:50.3]} 7... e6 {[%clk 0:03:02.5]} 8. Be2 {[%clk 0:02:50.8]}
8... exd5 {[%clk 0:03:02.9]} 9. cxd5 {[%clk 0:02:51.7]} 9... Re8 {[%clk
0:03:03]} 10. e5 {[%clk 0:02:52.3]} 10... dxe5 {[%clk 0:03:02.5]} 11. fxe5
{[%clk 0:02:53.2]} 11... Ng4 {[%clk 0:03:03.1]} 12. Bg5 {[%clk 0:02:53.8]} 12...
Qb6 {[%clk 0:03:02]} 13. O-O {[%clk 0:02:53.8]} 13... h6 {[%clk 0:02:50.6]} 14.
Bf4 {[%clk 0:02:44.7]} 14... g5 {[%clk 0:02:44]} 15. Be3 {[%clk 0:02:04.7]}
15... Nxe3 {[%clk 0:02:43.4]} 16. Qa4 {[%clk 0:02:00.6]} 16... Bd7 {[%clk
0:02:41.9]} 17. Qe4 {[%clk 0:01:58.9]} 17... Nxf1 {[%clk 0:02:40.1]} 18. Rxf1
{[%clk 0:01:59.8]} 18... g4 {[%clk 0:02:22.9]} 19. e6 {[%clk 0:01:43.4]} 19...
fxe6 {[%clk 0:02:14.9]} 20. d6 {[%clk 0:01:21.9]} 20... gxf3 {[%clk 0:02:09.6]}
21. Rxf3 {[%clk 0:01:10.2]} 21... c4+ {[%clk 0:01:40.7]} 22. Kh1 {[%clk
0:01:00.5]} 22... Bc6 {[%clk 0:01:07.7]} 23. Qg6 {[%clk 0:00:57.5]} 23... Nd7
{[%clk 0:00:59.2]} 24. Qf7+ {[%clk 0:00:16.3]} 24... Kh8 {[%clk 0:00:59.5]} 25.
Rg3 {[%clk 0:00:13.7]} 25... Qd4 {[%clk 0:00:56.3]} 26. Rg4 {[%clk 0:00:05.8]}
26... Qf6 {[%clk 0:00:55.5]} 27. Qh5 {[%clk 0:00:04.9]} 27... Rf8 {[%clk
0:00:52.3]} 28. h3 {[%clk 0:00:04.4]} 28... Qe5 {[%clk 0:00:32.9]} 29. Qg6
{[%clk 0:00:02.1]} 29... Rf2 {[%clk 0:00:25.4]} 30. Qc2 {[%clk 0:00:02.9]} 30...
Rxg2 {[%clk 0:00:20.7]} 31. Qg6 {[%clk 0:00:03.6]} 31... Rxg4+ {[%clk 0:00:20]}
0-1

[Event "Early-Titled-Tuesday-Blitz-February-06-2024"]
[Site "Chess.com"]
[Date "2024.02.06"]
[Round "9"]
[White "bazar-wokzal"]
[Black "LikeWater"]
[Result "1-0"]
[WhiteElo "2628"]
[BlackElo "2803"]
[TimeControl "180+1"]
[EndTime "9:44:18 PST"]
[Termination "bazar-wokzal won by resignation"]

1. e4 {[%clk 0:03:00.9]} 1... g6 {[%clk 0:02:59.9]} 2. Nc3 {[%clk 0:03:00.3]}
2... Bg7 {[%clk 0:02:59.6]} 3. h4 {[%clk 0:03:00]} 3... h5 {[%clk 0:02:50.6]} 4.
Nf3 {[%clk 0:02:59.6]} 4... c5 {[%clk 0:02:47.8]} 5. Ng5 {[%clk 0:02:59.3]} 5...
Nc6 {[%clk 0:02:46]} 6. Bc4 {[%clk 0:02:57.7]} 6... e6 {[%clk 0:02:45.9]} 7. d3
{[%clk 0:02:57.6]} 7... Nge7 {[%clk 0:02:43.6]} 8. a4 {[%clk 0:02:55.5]} 8... d5
{[%clk 0:02:42.8]} 9. Bb3 {[%clk 0:02:47.9]} 9... b6 {[%clk 0:02:30.2]} 10. Bf4
{[%clk 0:02:43.2]} 10... O-O {[%clk 0:02:23.3]} 11. Qe2 {[%clk 0:02:26.3]} 11...
Nd4 {[%clk 0:02:17.4]} 12. Qd2 {[%clk 0:02:23.9]} 12... e5 {[%clk 0:01:59.7]}
13. Bg3 {[%clk 0:02:17.9]} 13... Nxb3 {[%clk 0:01:55.8]} 14. cxb3 {[%clk
0:02:17.8]} 14... f5 {[%clk 0:01:50.3]} 15. exd5 {[%clk 0:02:08.2]} 15... Nxd5
{[%clk 0:01:49.1]} 16. O-O {[%clk 0:02:03.4]} 16... Nb4 {[%clk 0:01:48.3]} 17.
Rad1 {[%clk 0:02:01.2]} 17... Qd7 {[%clk 0:01:28.1]} 18. Rfe1 {[%clk 0:01:58]}
18... Re8 {[%clk 0:01:18.7]} 19. Nf3 {[%clk 0:01:53.4]} 19... f4 {[%clk
0:01:13.8]} 20. Bh2 {[%clk 0:01:49.5]} 20... Ba6 {[%clk 0:01:06.6]} 21. Nb5
{[%clk 0:01:38.2]} 21... Bb7 {[%clk 0:01:00.1]} 22. Ng5 {[%clk 0:01:31.7]} 22...
Rad8 {[%clk 0:00:52.4]} 23. Ne4 {[%clk 0:01:01.5]} 23... Bxe4 {[%clk 0:00:22.7]}
24. Rxe4 {[%clk 0:01:01]} 24... Qxd3 {[%clk 0:00:20.3]} 25. Qxd3 {[%clk
0:00:56.2]} 25... Rxd3 {[%clk 0:00:17.9]} 26. Rxd3 {[%clk 0:00:55.2]} 26... Nxd3
{[%clk 0:00:18.8]} 27. Nxa7 {[%clk 0:00:55]} 27... Rd8 {[%clk 0:00:17.2]} 28.
Kf1 {[%clk 0:00:40.4]} 28... Nxb2 {[%clk 0:00:11.8]} 29. Ke2 {[%clk 0:00:38.9]}
29... Rd3 {[%clk 0:00:10]} 30. b4 {[%clk 0:00:34.3]} 30... Nxa4 {[%clk
0:00:07.6]} 31. Kxd3 {[%clk 0:00:29.1]} 1-0

[Event "Early-Titled-Tuesday-Blitz-February-06-2024"]
[Site "Chess.com"]
[Date "2024.02.06"]
[Round "9"]
[White "Chesstiger64"]
[Black "Happy1712Drummer"]
[Result "1-0"]
[WhiteElo "2285"]
[BlackElo "2383"]
[TimeControl "180+1"]
[EndTime "9:44:18 PST"]
[Termination "Chesstiger64 won on time"]

1. d4 {[%clk 0:03:00.9]} 1... d5 {[%clk 0:02:57.8]} 2. Nf3 {[%clk 0:03:00.5]}
2... e6 {[%clk 0:02:57.2]} 3. e3 {[%clk 0:03:00.2]} 3... Nf6 {[%clk 0:02:56.4]}
4. Nbd2 {[%clk 0:02:59.5]} 4... b6 {[%clk 0:02:46.9]} 5. c3 {[%clk 0:02:57.1]}
5... Bb7 {[%clk 0:02:46.4]} 6. Bd3 {[%clk 0:02:57.1]} 6... Ne4 {[%clk
0:02:42.2]} 7. Qc2 {[%clk 0:02:52.5]} 7... f5 {[%clk 0:02:42]} 8. Ne5 {[%clk
0:02:52.6]} 8... Bd6 {[%clk 0:02:41.4]} 9. O-O {[%clk 0:02:51.2]} 9... O-O
{[%clk 0:02:41.2]} 10. f3 {[%clk 0:02:50.8]} 10... Nxd2 {[%clk 0:02:40.9]} 11.
Bxd2 {[%clk 0:02:50.6]} 11... Nd7 {[%clk 0:02:39.8]} 12. Nxd7 {[%clk 0:02:49.6]}
12... Qxd7 {[%clk 0:02:39.8]} 13. e4 {[%clk 0:02:49.5]} 13... g6 {[%clk
0:02:20.1]} 14. exd5 {[%clk 0:02:36.5]} 14... exd5 {[%clk 0:02:17.5]} 15. Bh6
{[%clk 0:02:28.6]} 15... Rfe8 {[%clk 0:02:17.3]} 16. Rae1 {[%clk 0:02:28]} 16...
Re7 {[%clk 0:01:38.9]} 17. Bg5 {[%clk 0:02:18]} 17... Rxe1 {[%clk 0:01:34.9]}
18. Rxe1 {[%clk 0:02:17.4]} 18... Re8 {[%clk 0:01:32.7]} 19. Rxe8+ {[%clk
0:02:09.7]} 19... Qxe8 {[%clk 0:01:33.6]} 20. Qd2 {[%clk 0:02:06.4]} 20... c5
{[%clk 0:01:19]} 21. h4 {[%clk 0:01:53.1]} 21... cxd4 {[%clk 0:01:07.1]} 22.
cxd4 {[%clk 0:01:54]} 22... Qa4 {[%clk 0:01:06.7]} 23. Qe3 {[%clk 0:01:38.5]}
23... Qd7 {[%clk 0:01:06.3]} 24. Bf6 {[%clk 0:01:28.2]} 24... Kf7 {[%clk
0:01:03.8]} 25. Be5 {[%clk 0:01:27.6]} 25... Bc6 {[%clk 0:00:49.9]} 26. h5
{[%clk 0:01:19.8]} 26... Qe6 {[%clk 0:00:35.7]} 27. f4 {[%clk 0:01:07.4]} 27...
Bxe5 {[%clk 0:00:14.3]} 28. fxe5 {[%clk 0:01:05.2]} 28... Kg7 {[%clk 0:00:14.3]}
29. h6+ {[%clk 0:01:01]} 29... Kf7 {[%clk 0:00:13.2]} 30. g3 {[%clk 0:00:55.4]}
30... Qe7 {[%clk 0:00:07.9]} 31. Qc1 {[%clk 0:00:52.3]} 31... Qe6 {[%clk
0:00:05]} 32. Kf2 {[%clk 0:00:50.9]} 32... Ke7 {[%clk 0:00:03]} 33. Qc3 {[%clk
0:00:49.4]} 33... Kd7 {[%clk 0:00:03.1]} 34. Qa3 {[%clk 0:00:48.9]} 34... a5
{[%clk 0:00:02.2]} 35. Qf8 {[%clk 0:00:48.6]} 35... Qe7 {[%clk 0:00:02.7]} 36.
Qg7 {[%clk 0:00:46.4]} 36... b5 {[%clk 0:00:01.7]} 37. Ke3 {[%clk 0:00:45]}
37... a4 {[%clk 0:00:01.9]} 38. Kf4 {[%clk 0:00:44.9]} 38... b4 {[%clk
0:00:02.2]} 39. g4 {[%clk 0:00:40.6]} 39... fxg4 {[%clk 0:00:01.9]} 40. Qxe7+
{[%clk 0:00:40.6]} 40... Kxe7 {[%clk 0:00:02.2]} 41. Bxg6 {[%clk 0:00:41.4]} 1-0

[Event "Early-Titled-Tuesday-Blitz-February-06-2024"]
[Site "Chess.com"]
[Date "2024.02.06"]
[Round "9"]
[White "bulletteemo"]
[Black "ljuks68"]
[Result "1-0"]
[WhiteElo "2550"]
[BlackElo "2423"]
[TimeControl "180+1"]
[EndTime "9:44:19 PST"]
[Termination "bulletteemo won by resignation"]

1. e4 {[%clk 0:02:57.2]} 1... e6 {[%clk 0:03:00.1]} 2. d4 {[%clk 0:02:52.3]}
2... d5 {[%clk 0:03:00.2]} 3. Nc3 {[%clk 0:02:52.3]} 3... Bb4 {[%clk 0:02:59.4]}
4. e5 {[%clk 0:02:48.2]} 4... Ne7 {[%clk 0:02:59.6]} 5. Bd2 {[%clk 0:02:40.7]}
5... b6 {[%clk 0:02:58]} 6. a3 {[%clk 0:02:39.3]} 6... Bxc3 {[%clk 0:02:58.1]}
7. Bxc3 {[%clk 0:02:40.2]} 7... O-O {[%clk 0:02:57.6]} 8. h4 {[%clk 0:02:37.5]}
8... c5 {[%clk 0:02:57.6]} 9. h5 {[%clk 0:02:28.5]} 9... h6 {[%clk 0:02:57]} 10.
Nf3 {[%clk 0:02:21.1]} 10... Nbc6 {[%clk 0:02:54.1]} 11. Qd2 {[%clk 0:02:09.9]}
11... cxd4 {[%clk 0:02:53.8]} 12. Bxd4 {[%clk 0:02:09.3]} 12... Nxd4 {[%clk
0:02:45.4]} 13. Nxd4 {[%clk 0:02:09]} 13... Qc7 {[%clk 0:02:45.5]} 14. f4 {[%clk
0:02:07.1]} 14... f6 {[%clk 0:02:44.2]} 15. Nb5 {[%clk 0:01:59.8]} 15... Qb8
{[%clk 0:02:34.6]} 16. O-O-O {[%clk 0:01:50.9]} 16... fxe5 {[%clk 0:02:30.7]}
17. fxe5 {[%clk 0:01:51.3]} 17... Qxe5 {[%clk 0:02:30.4]} 18. Re1 {[%clk
0:01:50.9]} 18... Qf6 {[%clk 0:02:25]} 19. Bd3 {[%clk 0:01:45.1]} 19... a6
{[%clk 0:01:46.4]} 20. Rhf1 {[%clk 0:01:39.9]} 20... Nf5 {[%clk 0:01:12]} 21.
Bxf5 {[%clk 0:01:25.3]} 21... axb5 {[%clk 0:01:00.9]} 22. Bxe6+ {[%clk
0:01:18.8]} 22... Bxe6 {[%clk 0:01:00.9]} 23. Rxf6 {[%clk 0:01:18.3]} 23... Rxf6
{[%clk 0:01:01.5]} 24. Qd3 {[%clk 0:01:06.2]} 24... b4 {[%clk 0:00:59.9]} 25.
axb4 {[%clk 0:00:45.4]} 25... Bf7 {[%clk 0:00:41.4]} 26. b3 {[%clk 0:00:41.6]}
26... Rd8 {[%clk 0:00:38.2]} 27. g4 {[%clk 0:00:40.3]} 27... d4 {[%clk
0:00:22.1]} 28. Re4 {[%clk 0:00:38.7]} 28... Rfd6 {[%clk 0:00:21.2]} 29. Re7
{[%clk 0:00:38.2]} 29... Rc6 {[%clk 0:00:15.4]} 30. b5 {[%clk 0:00:26]} 30...
Rc3 {[%clk 0:00:14.6]} 31. Qf5 {[%clk 0:00:18.2]} 31... Bxb3 {[%clk 0:00:13.7]}
32. Qe5 {[%clk 0:00:17.4]} 32... Rxc2+ {[%clk 0:00:12.6]} 33. Kb1 {[%clk
0:00:17.9]} 33... Bf7 {[%clk 0:00:07.9]} 34. Kxc2 {[%clk 0:00:17.7]} 34... d3+
{[%clk 0:00:07.9]} 35. Kd2 {[%clk 0:00:18.1]} 1-0

[Event "Early-Titled-Tuesday-Blitz-February-06-2024"]
[Site "Chess.com"]
[Date "2024.02.06"]
[Round "9"]
[White "Chessdreamer2020"]
[Black "Darius321"]
[Result "1-0"]
[WhiteElo "2541"]
[BlackElo "2368"]
[TimeControl "180+1"]
[EndTime "9:44:22 PST"]
[Termination "Chessdreamer2020 won on time"]

1. e4 {[%clk 0:02:58.8]} 1... e5 {[%clk 0:02:59.2]} 2. Nf3 {[%clk 0:02:29.3]}
2... Nc6 {[%clk 0:02:56.6]} 3. Bb5 {[%clk 0:02:29.7]} 3... Bc5 {[%clk
0:02:54.3]} 4. c3 {[%clk 0:02:29.2]} 4... Nf6 {[%clk 0:02:53.6]} 5. d4 {[%clk
0:02:27.9]} 5... Bb6 {[%clk 0:02:53.4]} 6. dxe5 {[%clk 0:02:19.6]} 6... Nxe4
{[%clk 0:02:49.1]} 7. O-O {[%clk 0:02:19]} 7... O-O {[%clk 0:02:47.7]} 8. Bd3
{[%clk 0:02:11.5]} 8... d5 {[%clk 0:02:46.5]} 9. exd6 {[%clk 0:02:10.9]} 9...
Nxd6 {[%clk 0:02:45.5]} 10. Bg5 {[%clk 0:01:59.3]} 10... f6 {[%clk 0:02:39.5]}
11. Bf4 {[%clk 0:01:56.3]} 11... Bg4 {[%clk 0:02:19.9]} 12. Nbd2 {[%clk
0:01:55.3]} 12... Nf7 {[%clk 0:02:05.2]} 13. Qc2 {[%clk 0:01:54.6]} 13... Bxf3
{[%clk 0:01:23.5]} 14. Bxh7+ {[%clk 0:01:51.5]} 14... Kh8 {[%clk 0:01:23.8]} 15.
Nxf3 {[%clk 0:01:52.4]} 15... Nfe5 {[%clk 0:01:12.2]} 16. Be4 {[%clk 0:01:38.3]}
16... Nxf3+ {[%clk 0:01:05.5]} 17. Bxf3 {[%clk 0:01:37.8]} 17... Ne5 {[%clk
0:01:05.7]} 18. Be4 {[%clk 0:01:35.7]} 18... Qe8 {[%clk 0:00:59.4]} 19. Bxb7
{[%clk 0:01:35.1]} 19... Rd8 {[%clk 0:00:55.7]} 20. Qe2 {[%clk 0:01:27.8]} 20...
Qg6 {[%clk 0:00:41.8]} 21. Be4 {[%clk 0:01:26.8]} 21... f5 {[%clk 0:00:22.9]}
22. Bc2 {[%clk 0:00:59.1]} 22... Ng4 {[%clk 0:00:19.3]} 23. h3 {[%clk
0:00:59.3]} 23... Nf6 {[%clk 0:00:17.1]} 24. Rad1 {[%clk 0:00:56.8]} 24... Ne4
{[%clk 0:00:16.6]} 25. Bxe4 {[%clk 0:00:47.5]} 25... fxe4 {[%clk 0:00:16.4]} 26.
Be3 {[%clk 0:00:46.1]} 26... Rde8 {[%clk 0:00:14.2]} 27. Rd5 {[%clk 0:00:45.2]}
27... Rf6 {[%clk 0:00:11]} 28. Rh5+ {[%clk 0:00:43.7]} 28... Kg8 {[%clk
0:00:11.2]} 29. Qc4+ {[%clk 0:00:43.7]} 29... Rfe6 {[%clk 0:00:08.6]} 30. Re5
{[%clk 0:00:42.3]} 30... Kh7 {[%clk 0:00:07.3]} 31. Rxe6 {[%clk 0:00:41.7]}
31... Rxe6 {[%clk 0:00:08.2]} 32. Re1 {[%clk 0:00:36.9]} 32... Rf6 {[%clk
0:00:06.6]} 33. Qd5 {[%clk 0:00:35.1]} 33... Rf5 {[%clk 0:00:05.9]} 34. Qd8
{[%clk 0:00:34.2]} 34... Qf7 {[%clk 0:00:04.4]} 35. Qh4+ {[%clk 0:00:34.3]}
35... Kg8 {[%clk 0:00:04.1]} 36. a3 {[%clk 0:00:33.8]} 36... Bxe3 {[%clk
0:00:02.9]} 37. Rxe3 {[%clk 0:00:34.7]} 1-0

[Event "Early-Titled-Tuesday-Blitz-February-06-2024"]
[Site "Chess.com"]
[Date "2024.02.06"]
[Round "9"]
[White "ansko1999"]
[Black "mbchess97"]
[Result "1-0"]
[WhiteElo "2680"]
[BlackElo "2462"]
[TimeControl "180+1"]
[EndTime "9:44:23 PST"]
[Termination "ansko1999 won by resignation"]

1. Nf3 {[%clk 0:03:00.9]} 1... Nf6 {[%clk 0:02:58.2]} 2. e3 {[%clk 0:03:01]}
2... e6 {[%clk 0:02:57.6]} 3. b3 {[%clk 0:03:00.2]} 3... b6 {[%clk 0:02:57.7]}
4. Bb2 {[%clk 0:03:00.2]} 4... Bb7 {[%clk 0:02:58.2]} 5. Be2 {[%clk 0:02:59.7]}
5... Be7 {[%clk 0:02:58.6]} 6. O-O {[%clk 0:03:00]} 6... O-O {[%clk 0:02:59.2]}
7. d3 {[%clk 0:02:59]} 7... a5 {[%clk 0:02:58.5]} 8. a3 {[%clk 0:02:58.3]} 8...
a4 {[%clk 0:02:44.9]} 9. b4 {[%clk 0:02:57.6]} 9... c5 {[%clk 0:02:44.9]} 10. b5
{[%clk 0:02:53.9]} 10... d5 {[%clk 0:02:42.7]} 11. Nbd2 {[%clk 0:02:47]} 11...
Qe8 {[%clk 0:02:28.1]} 12. Rb1 {[%clk 0:02:44.1]} 12... Nbd7 {[%clk 0:02:21.4]}
13. Re1 {[%clk 0:02:35.2]} 13... Bd6 {[%clk 0:02:17.7]} 14. Bf1 {[%clk
0:02:31.9]} 14... e5 {[%clk 0:02:14.6]} 15. e4 {[%clk 0:02:31.4]} 15... Qb8
{[%clk 0:02:01.8]} 16. g3 {[%clk 0:02:13.3]} 16... Ra5 {[%clk 0:01:40.1]} 17.
Bc3 {[%clk 0:02:01.2]} 17... Ra7 {[%clk 0:01:31.2]} 18. Bb2 {[%clk 0:01:59.3]}
18... Ra5 {[%clk 0:01:29.9]} 19. exd5 {[%clk 0:01:51.8]} 19... Bxd5 {[%clk
0:01:20.8]} 20. c4 {[%clk 0:01:38.1]} 20... Ba8 {[%clk 0:01:14.6]} 21. Bg2
{[%clk 0:01:29]} 21... Re8 {[%clk 0:01:09.7]} 22. Ne4 {[%clk 0:01:24.5]} 22...
Nxe4 {[%clk 0:01:05.5]} 23. dxe4 {[%clk 0:01:25.4]} 23... Nf6 {[%clk 0:01:05.6]}
24. Nh4 {[%clk 0:01:13.5]} 24... g6 {[%clk 0:01:01.1]} 25. Qd2 {[%clk
0:01:07.2]} 25... Be7 {[%clk 0:00:54.3]} 26. Rbd1 {[%clk 0:00:58.4]} 26... Ra7
{[%clk 0:00:52.7]} 27. Qc3 {[%clk 0:00:51.7]} 27... Bf8 {[%clk 0:00:40.1]} 28.
Nf3 {[%clk 0:00:45.1]} 28... Rae7 {[%clk 0:00:37.3]} 29. Qc2 {[%clk 0:00:41.1]}
29... Rd8 {[%clk 0:00:29.3]} 30. Nd2 {[%clk 0:00:37.9]} 30... Red7 {[%clk
0:00:26.5]} 31. Bc3 {[%clk 0:00:34.6]} 31... Bh6 {[%clk 0:00:22.7]} 32. f4
{[%clk 0:00:25.4]} 32... exf4 {[%clk 0:00:21.6]} 33. Bxf6 {[%clk 0:00:24.4]}
33... Rxd2 {[%clk 0:00:13.1]} 34. Rxd2 {[%clk 0:00:25.3]} 34... Rxd2 {[%clk
0:00:13.1]} 35. Qxd2 {[%clk 0:00:25.7]} 35... Qe8 {[%clk 0:00:08.7]} 36. gxf4
{[%clk 0:00:22.4]} 36... Bf8 {[%clk 0:00:08.7]} 37. e5 {[%clk 0:00:20.4]} 37...
Qe6 {[%clk 0:00:08.8]} 38. Bxa8 {[%clk 0:00:19.8]} 1-0

[Event "Early-Titled-Tuesday-Blitz-February-06-2024"]
[Site "Chess.com"]
[Date "2024.02.06"]
[Round "9"]
[White "DonJuanEGenaro"]
[Black "MasterKroket"]
[Result "0-1"]
[WhiteElo "2064"]
[BlackElo "2490"]
[TimeControl "180+1"]
[EndTime "9:44:23 PST"]
[Termination "MasterKroket won on time"]

1. Nf3 {[%clk 0:03:00.9]} 1... Nf6 {[%clk 0:02:59.7]} 2. d4 {[%clk 0:03:00.5]}
2... g6 {[%clk 0:02:59.9]} 3. Bf4 {[%clk 0:03:00.3]} 3... Bg7 {[%clk 0:03:00.2]}
4. e3 {[%clk 0:03:00.5]} 4... O-O {[%clk 0:03:00.4]} 5. Be2 {[%clk 0:03:00.6]}
5... c5 {[%clk 0:03:00.8]} 6. c3 {[%clk 0:02:51]} 6... cxd4 {[%clk 0:03:00.3]}
7. exd4 {[%clk 0:02:50.3]} 7... Nd5 {[%clk 0:02:56.3]} 8. Bd2 {[%clk 0:02:48.6]}
8... d6 {[%clk 0:02:52.6]} 9. h3 {[%clk 0:02:39.8]} 9... Nc6 {[%clk 0:02:52.5]}
10. O-O {[%clk 0:02:39.1]} 10... e5 {[%clk 0:02:52.8]} 11. Bg5 {[%clk
0:02:28.5]} 11... f6 {[%clk 0:02:45.7]} 12. dxe5 {[%clk 0:02:28.2]} 12... dxe5
{[%clk 0:02:45.3]} 13. Bc4 {[%clk 0:02:27.9]} 13... Be6 {[%clk 0:02:44.7]} 14.
Be3 {[%clk 0:02:24.6]} 14... Nc7 {[%clk 0:02:43.3]} 15. Qb3 {[%clk 0:02:13.7]}
15... Bxc4 {[%clk 0:02:32.8]} 16. Qxc4+ {[%clk 0:02:13.3]} 16... Qd5 {[%clk
0:02:33.4]} 17. Nbd2 {[%clk 0:01:59.7]} 17... Rad8 {[%clk 0:02:14.8]} 18. Qh4
{[%clk 0:01:50.7]} 18... f5 {[%clk 0:02:03.4]} 19. Nb3 {[%clk 0:01:45.3]} 19...
e4 {[%clk 0:02:00]} 20. Nfd4 {[%clk 0:01:43.1]} 20... Ne5 {[%clk 0:01:53.6]} 21.
Bf4 {[%clk 0:01:36.3]} 21... Ne6 {[%clk 0:01:43.6]} 22. Nxe6 {[%clk 0:01:13.2]}
22... Qxe6 {[%clk 0:01:44.5]} 23. Nd4 {[%clk 0:01:08.4]} 23... Qb6 {[%clk
0:01:39.9]} 24. Bxe5 {[%clk 0:01:04.5]} 24... Bxe5 {[%clk 0:01:39.1]} 25. Rfd1
{[%clk 0:00:55.8]} 25... Rd6 {[%clk 0:01:11.4]} 26. Nb3 {[%clk 0:00:47.5]} 26...
Rfd8 {[%clk 0:01:11.2]} 27. Rxd6 {[%clk 0:00:45.9]} 27... Qxd6 {[%clk
0:01:11.3]} 28. Nd4 {[%clk 0:00:25.3]} 28... Bf6 {[%clk 0:01:04.9]} 29. Qg3
{[%clk 0:00:22.5]} 29... Qxg3 {[%clk 0:01:04.2]} 30. fxg3 {[%clk 0:00:22.1]}
30... Bxd4+ {[%clk 0:01:04.9]} 31. cxd4 {[%clk 0:00:20.8]} 31... Rxd4 {[%clk
0:01:05.8]} 32. Rc1 {[%clk 0:00:19.9]} 32... Rd7 {[%clk 0:01:02.8]} 33. Kf2
{[%clk 0:00:19.8]} 33... Kf7 {[%clk 0:01:03.1]} 34. Ke3 {[%clk 0:00:19.8]} 34...
Ke6 {[%clk 0:01:03.8]} 35. Rc3 {[%clk 0:00:18.3]} 35... b5 {[%clk 0:01:03.2]}
36. Rc8 {[%clk 0:00:17.6]} 36... Kd5 {[%clk 0:00:55.5]} 37. b4 {[%clk
0:00:11.9]} 37... Ke5 {[%clk 0:00:50.2]} 38. Rc5+ {[%clk 0:00:09.7]} 38... Rd5
{[%clk 0:00:50.7]} 39. Rc7 {[%clk 0:00:09.7]} 39... Rd3+ {[%clk 0:00:49.5]} 40.
Ke2 {[%clk 0:00:08.2]} 40... a6 {[%clk 0:00:49.6]} 41. Rxh7 {[%clk 0:00:07]}
41... Ra3 {[%clk 0:00:49.9]} 42. Re7+ {[%clk 0:00:02.9]} 42... Kd4 {[%clk
0:00:49.3]} 43. Re6 {[%clk 0:00:02.3]} 43... Rxa2+ {[%clk 0:00:49.3]} 44. Kf1
{[%clk 0:00:02.1]} 44... Ke3 {[%clk 0:00:44.9]} 0-1

[Event "Early-Titled-Tuesday-Blitz-February-06-2024"]
[Site "Chess.com"]
[Date "2024.02.06"]
[Round "9"]
[White "NMJeevanK"]
[Black "Nuvas"]
[Result "0-1"]
[WhiteElo "2605"]
[BlackElo "2783"]
[TimeControl "180+1"]
[EndTime "9:44:24 PST"]
[Termination "Nuvas won by resignation"]

1. e4 {[%clk 0:03:00.9]} 1... e5 {[%clk 0:03:00]} 2. Nf3 {[%clk 0:02:55]} 2...
Nc6 {[%clk 0:03:00.4]} 3. Bc4 {[%clk 0:02:55]} 3... Nf6 {[%clk 0:03:00.4]} 4.
O-O {[%clk 0:02:51.4]} 4... Nxe4 {[%clk 0:03:00.1]} 5. Re1 {[%clk 0:02:48]} 5...
d5 {[%clk 0:02:56.9]} 6. Bb5 {[%clk 0:02:45.9]} 6... Bc5 {[%clk 0:02:56.8]} 7.
d4 {[%clk 0:02:34.6]} 7... exd4 {[%clk 0:02:56.7]} 8. Nxd4 {[%clk 0:02:21.7]}
8... O-O {[%clk 0:02:56.2]} 9. Be3 {[%clk 0:02:15]} 9... Nxd4 {[%clk 0:02:54.2]}
10. Bxd4 {[%clk 0:02:15.9]} 10... Bxd4 {[%clk 0:02:47.5]} 11. Qxd4 {[%clk
0:02:16.8]} 11... c6 {[%clk 0:02:40.2]} 12. Bf1 {[%clk 0:02:14.1]} 12... Bf5
{[%clk 0:02:28.5]} 13. Nc3 {[%clk 0:02:08]} 13... Qb6 {[%clk 0:02:23.2]} 14.
Qxb6 {[%clk 0:02:05.2]} 14... axb6 {[%clk 0:02:24.1]} 15. Nxe4 {[%clk
0:02:05.3]} 15... Bxe4 {[%clk 0:02:24.3]} 16. c3 {[%clk 0:02:04.2]} 16... Rfe8
{[%clk 0:02:22.3]} 17. a3 {[%clk 0:01:59.6]} 17... g5 {[%clk 0:02:15.4]} 18. Re3
{[%clk 0:01:55.8]} 18... f5 {[%clk 0:02:06.9]} 19. f3 {[%clk 0:01:51]} 19... f4
{[%clk 0:02:07]} 20. Ree1 {[%clk 0:01:45]} 20... Bg6 {[%clk 0:02:03]} 21. Kf2
{[%clk 0:01:45.4]} 21... Kf7 {[%clk 0:01:58.2]} 22. Rad1 {[%clk 0:01:44.7]}
22... Rxe1 {[%clk 0:01:51]} 23. Rxe1 {[%clk 0:01:43.3]} 23... Kf6 {[%clk
0:01:49.9]} 24. g3 {[%clk 0:01:31.7]} 24... Re8 {[%clk 0:01:48.2]} 25. Rxe8
{[%clk 0:01:01.6]} 25... Bxe8 {[%clk 0:01:40.9]} 26. c4 {[%clk 0:00:38.1]} 26...
Ke5 {[%clk 0:01:37.9]} 27. cxd5 {[%clk 0:00:36.7]} 27... cxd5 {[%clk 0:01:17.5]}
28. Ke1 {[%clk 0:00:28.4]} 28... fxg3 {[%clk 0:00:55]} 29. hxg3 {[%clk
0:00:29.3]} 29... h5 {[%clk 0:00:51.6]} 30. Kd2 {[%clk 0:00:25.8]} 30... h4
{[%clk 0:00:51.8]} 31. gxh4 {[%clk 0:00:22.9]} 31... gxh4 {[%clk 0:00:52.7]} 32.
Bh3 {[%clk 0:00:23.3]} 32... Bg6 {[%clk 0:00:43.6]} 33. b4 {[%clk 0:00:18.4]}
33... Bf5 {[%clk 0:00:40.6]} 34. Bg2 {[%clk 0:00:16.9]} 34... Kf4 {[%clk
0:00:40.9]} 35. a4 {[%clk 0:00:09.7]} 35... d4 {[%clk 0:00:36.4]} 36. a5 {[%clk
0:00:07]} 36... bxa5 {[%clk 0:00:35.3]} 37. bxa5 {[%clk 0:00:07.9]} 37... Kg3
{[%clk 0:00:34.8]} 38. Bf1 {[%clk 0:00:06.2]} 38... h3 {[%clk 0:00:29.7]} 39.
Bxh3 {[%clk 0:00:04.1]} 39... Kxh3 {[%clk 0:00:30.6]} 40. f4 {[%clk 0:00:03.4]}
40... Kg3 {[%clk 0:00:30.7]} 0-1